{"text_format":"3","workbook":"xlsx","n_sheets":7,"sheets":["Lunes","Martes","Miércoles","Jueves","Viernes","Sábado","Domingo"],"not_rendered":{"defined_names":21},"read":"whole","date_system":"1900"}

{"sheet":"Lunes","index":0,"n_rows":10,"n_cols":13,"rows_kept":10,"merged":[[0,1,0,4],[1,2,1,4],[2,2,2,4]]}
[null,"Programación de turnos"]
[null,"Para la semana del: ","Fecha"]
[null,"Nombre del departamento: ","Nombre"]
[]
[null,"LUNES","7:00","8:00","9:00","10:00","11:00","12:00","13:00","14:00","15:00","¿Enfermedad?","TOTAL"]
[null,"Nombre 1","gerente","gerente","gerente","gerente","gerente","gerente","gerente","gerente","gerente",null,{"$f":"COUNTIF(Lunes[[#This Row],[7:00]:[15:00]],\"*\")","v":9}]
[null,"Nombre 2",null,"cajero","cajero","cajero","cajero",{"$nulls":5},{"$f":"COUNTIF(Lunes[[#This Row],[7:00]:[15:00]],\"*\")","v":4}]
[null,"Nombre 3",null,"recepción","recepción","recepción","recepción ","recepción","recepción","recepción",null,null,{"$f":"COUNTIF(Lunes[[#This Row],[7:00]:[15:00]],\"*\")","v":7}]
[null,"Nombre 4",null,"recepción","recepción","recepción","recepción ","recepción","recepción","recepción",null,null,{"$f":"COUNTIF(Lunes[[#This Row],[7:00]:[15:00]],\"*\")","v":7}]
[null,"Nombre 5",{"$nulls":9},"Enfermedad",{"$f":"COUNTIF(Lunes[[#This Row],[7:00]:[15:00]],\"*\")","v":0}]

{"sheet":"Martes","index":1,"n_rows":10,"n_cols":13,"rows_kept":10,"merged":[[0,1,0,4],[1,2,1,4],[2,2,2,4]]}
[null,"Programación de turnos"]
[null,"Para la semana del: ",{"$f":"Lunes!C2","v":"Fecha"}]
[null,"Nombre del departamento: ",{"$f":"Lunes!C3","v":"Nombre"}]
[]
[null,"MARTES","7:00","8:00","9:00","10:00","11:00","12:00","13:00","14:00","15:00","¿Enfermedad?","TOTAL"]
[null,"Nombre 1","gerente","gerente","gerente","gerente","gerente","gerente","gerente","gerente","gerente",null,{"$f":"COUNTIF(Martes[[#This Row],[7:00]:[15:00]],\"*\")","v":9}]
[null,"Nombre 2",null,"cajero","cajero","cajero","cajero",{"$nulls":5},{"$f":"COUNTIF(Martes[[#This Row],[7:00]:[15:00]],\"*\")","v":4}]
[null,"Nombre 3",null,"recepción","recepción","recepción","recepción ","recepción","recepción","recepción",null,null,{"$f":"COUNTIF(Martes[[#This Row],[7:00]:[15:00]],\"*\")","v":7}]
[null,"Nombre 4",null,"recepción","recepción","recepción","recepción ","recepción","recepción","recepción",null,null,{"$f":"COUNTIF(Martes[[#This Row],[7:00]:[15:00]],\"*\")","v":7}]
[null,"Nombre 5",{"$nulls":9},"Enfermedad",{"$f":"COUNTIF(Martes[[#This Row],[7:00]:[15:00]],\"*\")","v":0}]

{"sheet":"Miércoles","index":2,"n_rows":10,"n_cols":13,"rows_kept":10,"merged":[[0,1,0,4],[1,2,1,4],[2,2,2,4]]}
[null,"Programación de turnos"]
[null,"Para la semana del: ",{"$f":"Lunes!C2","v":"Fecha"}]
[null,"Nombre del departamento: ",{"$f":"Lunes!C3","v":"Nombre"}]
[]
[null,"MIÉRCOLES","7:00","8:00","9:00","10:00","11:00","12:00","13:00","14:00","15:00","¿Enfermedad?","TOTAL"]
[null,"Nombre 1","gerente","gerente","gerente","gerente","gerente","gerente","gerente","gerente","gerente",null,{"$f":"COUNTIF(Miercoles[[#This Row],[7:00]:[15:00]],\"*\")","v":9}]
[null,"Nombre 2",null,"cajero","cajero","cajero","cajero",{"$nulls":5},{"$f":"COUNTIF(Miercoles[[#This Row],[7:00]:[15:00]],\"*\")","v":4}]
[null,"Nombre 3",null,"recepción","recepción","recepción","recepción ","recepción","recepción","recepción",null,null,{"$f":"COUNTIF(Miercoles[[#This Row],[7:00]:[15:00]],\"*\")","v":7}]
[null,"Nombre 4",null,"recepción","recepción","recepción","recepción ","recepción","recepción","recepción",null,null,{"$f":"COUNTIF(Miercoles[[#This Row],[7:00]:[15:00]],\"*\")","v":7}]
[null,"Nombre 5",{"$nulls":9},"Enfermedad",{"$f":"COUNTIF(Miercoles[[#This Row],[7:00]:[15:00]],\"*\")","v":0}]

{"sheet":"Jueves","index":3,"n_rows":10,"n_cols":13,"rows_kept":10,"merged":[[0,1,0,4],[1,2,1,4],[2,2,2,4]]}
[null,"Programación de turnos"]
[null,"Para la semana del: ",{"$f":"Lunes!C2","v":"Fecha"}]
[null,"Nombre del departamento: ",{"$f":"Lunes!C3","v":"Nombre"}]
[]
[null,"JUEVES","7:00","8:00","9:00","10:00","11:00","12:00","13:00","14:00","15:00","¿Enfermedad?","TOTAL"]
[null,"Nombre 1","gerente","gerente","gerente","gerente","gerente","gerente","gerente","gerente","gerente",null,{"$f":"COUNTIF(Jueves[[#This Row],[7:00]:[15:00]],\"*\")","v":9}]
[null,"Nombre 2",null,"cajero","cajero","cajero","cajero",{"$nulls":5},{"$f":"COUNTIF(Jueves[[#This Row],[7:00]:[15:00]],\"*\")","v":4}]
[null,"Nombre 3",null,"recepción","recepción","recepción","recepción ","recepción","recepción","recepción",null,null,{"$f":"COUNTIF(Jueves[[#This Row],[7:00]:[15:00]],\"*\")","v":7}]
[null,"Nombre 4",null,"recepción","recepción","recepción","recepción ","recepción","recepción","recepción",null,null,{"$f":"COUNTIF(Jueves[[#This Row],[7:00]:[15:00]],\"*\")","v":7}]
[null,"Nombre 5",{"$nulls":9},"Enfermedad",{"$f":"COUNTIF(Jueves[[#This Row],[7:00]:[15:00]],\"*\")","v":0}]

{"sheet":"Viernes","index":4,"n_rows":10,"n_cols":13,"rows_kept":10,"merged":[[0,1,0,4],[1,2,1,4],[2,2,2,4]]}
[null,"Programación de turnos"]
[null,"Para la semana del: ",{"$f":"Lunes!C2","v":"Fecha"}]
[null,"Nombre del departamento: ",{"$f":"Lunes!C3","v":"Nombre"}]
[]
[null,"VIERNES","7:00","8:00","9:00","10:00","11:00","12:00","13:00","14:00","15:00","¿Enfermedad?","TOTAL"]
[null,"Nombre 1","gerente","gerente","gerente","gerente","gerente","gerente","gerente","gerente","gerente",null,{"$f":"COUNTIF(Viernes[[#This Row],[7:00]:[15:00]],\"*\")","v":9}]
[null,"Nombre 2",null,"cajero","cajero","cajero","cajero",{"$nulls":5},{"$f":"COUNTIF(Viernes[[#This Row],[7:00]:[15:00]],\"*\")","v":4}]
[null,"Nombre 3",null,"recepción","recepción","recepción","recepción ","recepción","recepción","recepción",null,null,{"$f":"COUNTIF(Viernes[[#This Row],[7:00]:[15:00]],\"*\")","v":7}]
[null,"Nombre 4",null,"recepción","recepción","recepción","recepción ","recepción","recepción","recepción",null,null,{"$f":"COUNTIF(Viernes[[#This Row],[7:00]:[15:00]],\"*\")","v":7}]
[null,"Nombre 5",{"$nulls":9},"Enfermedad",{"$f":"COUNTIF(Viernes[[#This Row],[7:00]:[15:00]],\"*\")","v":0}]

{"sheet":"Sábado","index":5,"n_rows":10,"n_cols":13,"rows_kept":10,"merged":[[0,1,0,4],[1,2,1,4],[2,2,2,4]]}
[null,"Programación de turnos"]
[null,"Para la semana del: ",{"$f":"Lunes!C2","v":"Fecha"}]
[null,"Nombre del departamento: ",{"$f":"Lunes!C3","v":"Nombre"}]
[]
[null,"SÁBADO","7:00","8:00","9:00","10:00","11:00","12:00","13:00","14:00","15:00","¿Enfermedad?","TOTAL"]
[null,"Nombre 1","gerente","gerente","gerente","gerente","gerente","gerente","gerente","gerente","gerente",null,{"$f":"COUNTIF(Sabado[[#This Row],[7:00]:[15:00]],\"*\")","v":9}]
[null,"Nombre 2",null,"cajero","cajero","cajero","cajero",{"$nulls":5},{"$f":"COUNTIF(Sabado[[#This Row],[7:00]:[15:00]],\"*\")","v":4}]
[null,"Nombre 3",null,"recepción","recepción","recepción","recepción ","recepción","recepción","recepción",null,null,{"$f":"COUNTIF(Sabado[[#This Row],[7:00]:[15:00]],\"*\")","v":7}]
[null,"Nombre 4",null,"recepción","recepción","recepción","recepción ","recepción","recepción","recepción",null,null,{"$f":"COUNTIF(Sabado[[#This Row],[7:00]:[15:00]],\"*\")","v":7}]
[null,"Nombre 5",{"$nulls":9},"Enfermedad",{"$f":"COUNTIF(Sabado[[#This Row],[7:00]:[15:00]],\"*\")","v":0}]

{"sheet":"Domingo","index":6,"n_rows":10,"n_cols":13,"rows_kept":10,"merged":[[0,1,0,4],[1,2,1,4],[2,2,2,4]]}
[null,"Programación de turnos"]
[null,"Para la semana del: ",{"$f":"Lunes!C2","v":"Fecha"}]
[null,"Nombre del departamento: ",{"$f":"Lunes!C3","v":"Nombre"}]
[]
[null,"DOMINGO","7:00","8:00","9:00","10:00","11:00","12:00","13:00","14:00","15:00","¿Enfermedad?","TOTAL"]
[null,"Nombre 1","gerente","gerente","gerente","gerente","gerente","gerente","gerente","gerente","gerente",null,{"$f":"COUNTIF(Domingo[[#This Row],[7:00]:[15:00]],\"*\")","v":9}]
[null,"Nombre 2",null,"cajero","cajero","cajero","cajero",{"$nulls":5},{"$f":"COUNTIF(Domingo[[#This Row],[7:00]:[15:00]],\"*\")","v":4}]
[null,"Nombre 3",null,"recepción","recepción","recepción","recepción ","recepción","recepción","recepción",null,null,{"$f":"COUNTIF(Domingo[[#This Row],[7:00]:[15:00]],\"*\")","v":7}]
[null,"Nombre 4",null,"recepción","recepción","recepción","recepción ","recepción","recepción","recepción",null,null,{"$f":"COUNTIF(Domingo[[#This Row],[7:00]:[15:00]],\"*\")","v":7}]
[null,"Nombre 5",{"$nulls":9},"Enfermedad",{"$f":"COUNTIF(Domingo[[#This Row],[7:00]:[15:00]],\"*\")","v":0}]